[Event "ESTCC 65 2019"]
[Site "Mali Losinj"]
[Date "2019.09.19"]
[Round "2.26"]
[White "Wademark, Helge"]
[Black "Karppinen, Martti"]
[Result "1-0"]
[ECO "C42"]
[WhiteElo "1994"]
[BlackElo "1925"]
[Annotator "NA"]
[PlyCount "79"]
[EventDate "2019.09.18"]
[EventType "team-tourn"]
[EventCountry "CRO"]
[SourceTitle "playchess.com"]
[Source "ChessBase"]
[SourceQuality "1"]
[WhiteTeam "Sweden"]
[BlackTeam "Finland"]
[WhiteTeamCountry "SWE"]
[BlackTeamCountry "FIN"]
[TimeControl "40/5400+30:1800+30"]

1. e4 {[%emt 0:00:30]} e5 {[%emt 0:01:30]} 2. Nf3 {[%emt 0:00:00]} Nf6 {[%emt 0:01:30]} 3. Nxe5 {[%emt 0:03:00]} Nxe4 {[%emt 0:02:30]} 4. Qe2 {[%emt 0:01:30]} d5 {[%emt 0:03:30]} 5. d3 {[%emt 0:02:30]} Qe7 {[%emt 0:05:30]} 6. dxe4 {[%emt 0:02:30]} Qxe5 {[%emt 0:02:30]} 7. exd5 {[%emt 0:00:30]} Bd6 {[%emt 0:02:30]} 8. Nc3 {[%emt 0:06:30]} Bf5 {[%emt 0:09:30]} 9. Be3 {[%emt 0:03:30]} O-O {[%emt 0:05:30]} 10. O-O-O {[%emt 0:01:30]} Nd7 {[%emt 0:02:30]} 11. g4 {[%emt 0:12:30]} Be4 {[%emt 0:12:30]} 12. f3 {[%emt 0:03:30]} Bg6 {[%emt 0:06:30]} 13. f4 {[%emt 0:04:30]} Qf6 {[%emt 0:01:30]} 14. f5 {[%emt 0:02:30]} Rae8 {[%emt 0:02:30]} 15. Qd2 {[%emt 0:04:30]} Rxe3 {[%emt 0:06:30]} 16. Qxe3 {[%emt 0:02:30]} h6 {[%emt 0:00:30]} 17. Kb1 {[%emt 0:03:30]} Bh7 {[%emt 0:02:30]} 18. Bg2 {[%emt 0:04:30]} a6 {[%emt 0:09:30]} 19. Ne4 {[%emt 0:03:30]} Qe5 {[%emt 0:01:06]} 20. Qd4 {[%emt 0:01:30]} Re8 {[%emt 0:04:16]} 21. h3 {[%emt 0:06:30]} Kf8 {[%emt 0:01:21]} 22. a3 {[%emt 0:01:30]} f6 {[%emt 0:00:32]} 23. Qd3 {[%emt 0:06:30]} Bg8 {[%emt 0:01:45]} 24. Rhe1 {[%emt 0:01:30]} Nb6 {[%emt 0:04:02]} 25. c4 {[%emt 0:07:46]} Na4 {[%emt 0:02:25]} 26. Qc2 {[%emt 0:01:53]} b5 {[%emt 0:02:04]} 27. c5 {[%emt 0:05:16]} Be7 {[%emt 0:02:56]} 28. d6 {[%emt 0:02:52]} Bd8 {[%emt 0:01:47]} 29. b3 {[%emt 0:00:59]} c6 {[%emt 0:02:03]} 30. d7 {[%emt 0:01:34]} Re7 {[%emt 0:00:20]} 31. bxa4 {[%emt 0:00:25]} bxa4 {[%emt 0:00:14]} 32. Qc3 {[%emt 0:01:34]} Qh2 {[%emt 0:00:55]} 33. Qg3 {[%emt 0:00:41]} Qxg3 {[%emt 0:00:34]} 34. Nxg3 {[%emt 0:00:01]} Bb3 {[%emt 0:00:52]} 35. Rxe7 {[%emt 0:00:39]} Kxe7 {[%emt 0:00:04]} 36. Rd6 {[%emt 0:00:42]} Bc7 {[%emt 0:00:29]} 37. d8=Q+ {[%emt 0:00:27]} Bxd8 {[%emt 0:00:06]} 38. Rxc6 {[%emt 0:00:19]} Bc4 {[%emt 0:00:44]} 39. Ne4 {[%emt 0:00:44]} Bd3+ {[%emt 0:00:46]} 40. Kb2 {[%emt 0:00:00]} 1-0

[Event "ESTCC 65 2019"]
[Site "Mali Losinj"]
[Date "2019.09.19"]
[Round "2.27"]
[White "Patola, Eero"]
[Black "Bernhardsson, Sten"]
[Result "1/2-1/2"]
[ECO "A36"]
[WhiteElo "1798"]
[BlackElo "1956"]
[Annotator "NA"]
[PlyCount "101"]
[EventDate "2019.09.18"]
[EventType "team-tourn"]
[EventCountry "CRO"]
[SourceTitle "playchess.com"]
[Source "ChessBase"]
[SourceQuality "1"]
[WhiteTeam "Finland"]
[BlackTeam "Sweden"]
[WhiteTeamCountry "FIN"]
[BlackTeamCountry "SWE"]
[TimeControl "40/5400+30:1800+30"]

1. e4 {[%emt 0:00:30]} c5 {[%emt 0:00:30]} 2. c4 {[%emt 0:00:00]} Nc6 {[%emt 0:00:30]} 3. Nc3 {[%emt 0:00:00]} e6 {[%emt 0:00:30]} 4. g3 {[%emt 0:00:30]} Nf6 {[%emt 0:02:30]} 5. Bg2 {[%emt 0:00:30]} Be7 {[%emt 0:07:30]} 6. Nge2 {[%emt 0:00:30]} O-O {[%emt 0:01:30]} 7. O-O {[%emt 0:00:00]} d6 {[%emt 0:07:30]} 8. d3 {[%emt 0:00:00]} Bd7 {[%emt 0:06:30]} 9. Rb1 {[%emt 0:02:30]} Rb8 {[%emt 0:03:30]} 10. a3 {[%emt 0:00:30]} a6 {[%emt 0:03:30]} 11. h3 {[%emt 0:02:30]} b5 {[%emt 0:04:30]} 12. cxb5 {[%emt 0:00:30]} axb5 {[%emt 0:00:30]} 13. g4 {[%emt 0:02:30]} b4 {[%emt 0:02:30]} 14. axb4 {[%emt 0:00:30]} Rxb4 {[%emt 0:06:30]} 15. Ng3 {[%emt 0:01:30]} Nd4 {[%emt 0:03:30]} 16. f4 {[%emt 0:00:30]} Bc6 {[%emt 0:06:30]} 17. g5 {[%emt 0:00:30]} Nd7 {[%emt 0:01:30]} 18. h4 {[%emt 0:00:30]} f5 {[%emt 0:08:30]} 19. exf5 {[%emt 0:10:30]} Bxg2 {[%emt 0:01:30]} 20. Kxg2 {[%emt 0:01:30]} Nxf5 {[%emt 0:02:30]} 21. Nxf5 {[%emt 0:01:30]} Rxf5 {[%emt 0:02:30]} 22. Qe2 {[%emt 0:01:30]} Nf8 {[%emt 0:01:30]} 23. Bd2 {[%emt 0:01:30]} Qb8 {[%emt 0:02:30]} 24. Nd1 {[%emt 0:02:30]} Rb3 {[%emt 0:03:30]} 25. Bc3 {[%emt 0:03:30]} Qb7+ {[%emt 0:01:02]} 26. Kh2 {[%emt 0:03:30]} Rf7 {[%emt 0:02:40]} 27. h5 {[%emt 0:03:30]} e5 {[%emt 0:07:44]} 28. Qg4 {[%emt 0:02:30]} Rxf4 {[%emt 0:00:52]} 29. Rxf4 {[%emt 0:00:30]} exf4 {[%emt 0:00:05]} 30. Qxf4 {[%emt 0:00:30]} Qd5 {[%emt 0:00:16]} 31. Ne3 {[%emt 0:06:30]} Qf7 {[%emt 0:02:53]} 32. Qxf7+ {[%emt 0:01:30]} Kxf7 {[%emt 0:00:07]} 33. Rf1+ {[%emt 0:02:30]} Kg8 {[%emt 0:00:07]} 34. Nf5 {[%emt 0:01:30]} Bxg5 {[%emt 0:00:38]} 35. Rg1 {[%emt 0:00:30]} h6 {[%emt 0:00:52]} 36. Bxg7 {[%emt 0:04:30]} Kf7 {[%emt 0:00:43]} 37. Rf1 {[%emt 0:01:30]} Bf6 {[%emt 0:04:17]} 38. Bxf6 {[%emt 0:01:30]} Rxd3 {[%emt 0:02:08]} 39. Bc3 {[%emt 0:01:30]} d5 {[%emt 0:00:49]} 40. Nxh6+ {[%emt 0:02:30]} Ke8 {[%emt 0:00:14]} 41. Ng4 {[%emt 0:32:30]} d4 {[%emt 0:31:21]} 42. Be1 {[%emt 0:00:00]} Rb3 {[%emt 0:00:00]} 43. Rf2 {[%emt 0:00:00]} c4 {[%emt 0:00:00]} 44. h6 {[%emt 0:00:00]} c3 {[%emt 0:00:00]} 45. bxc3 {[%emt 0:00:00]} dxc3 {[%emt 0:00:00]} 46. Ne3 {[%emt 0:00:00]} Rb2 {[%emt 0:00:00]} 47. Nc2 {[%emt 0:00:00]} Rb6 {[%emt 0:00:00]} 48. Re2+ {[%emt 0:00:00]} Kf7 {[%emt 0:00:00]} 49. Rf2+ {[%emt 0:00:00]} Ke8 {[%emt 0:00:00]} 50. Re2+ {[%emt 0:00:00]} Kf7 {[%emt 0:00:00]} 51. Rf2+ {[%emt 0:00:00]} 1/2-1/2

[Event "ESTCC 65 2019"]
[Site "Mali Losinj"]
[Date "2019.09.19"]
[Round "2.28"]
[White "Nordenstrom, Sven"]
[Black "Virtanen, Esko"]
[Result "1-0"]
[ECO "B01"]
[WhiteElo "1874"]
[BlackElo "1771"]
[Annotator "NA"]
[PlyCount "89"]
[EventDate "2019.09.18"]
[EventType "team-tourn"]
[EventCountry "CRO"]
[SourceTitle "playchess.com"]
[Source "ChessBase"]
[SourceQuality "1"]
[WhiteTeam "Sweden"]
[BlackTeam "Finland"]
[WhiteTeamCountry "SWE"]
[BlackTeamCountry "FIN"]
[TimeControl "40/5400+30:1800+30"]

1. e4 {[%emt 0:00:30]} d5 {[%emt 0:00:30]} 2. exd5 {[%emt 0:00:30]} Qxd5 {[%emt 0:00:00]} 3. Nc3 {[%emt 0:00:30]} Qa5 {[%emt 0:00:00]} 4. d4 {[%emt 0:00:30]} Bf5 {[%emt 0:00:30]} 5. Nf3 {[%emt 0:01:30]} Nf6 {[%emt 0:01:30]} 6. Bd2 {[%emt 0:05:30]} Nbd7 {[%emt 0:01:30]} 7. Be2 {[%emt 0:01:30]} e6 {[%emt 0:00:30]} 8. O-O {[%emt 0:01:30]} h6 {[%emt 0:01:30]} 9. h3 {[%emt 0:03:30]} c6 {[%emt 0:00:30]} 10. Bf4 {[%emt 0:01:30]} Bb4 {[%emt 0:02:30]} 11. Nb1 {[%emt 0:02:30]} O-O {[%emt 0:00:00]} 12. Bd3 {[%emt 0:00:30]} Bxd3 {[%emt 0:03:00]} 13. Qxd3 {[%emt 0:00:30]} Qb6 {[%emt 0:01:30]} 14. a3 {[%emt 0:02:30]} Be7 {[%emt 0:00:30]} 15. Nbd2 {[%emt 0:00:30]} Nd5 {[%emt 0:11:30]} 16. Bh2 {[%emt 0:07:30]} N7f6 {[%emt 0:00:00]} 17. Nc4 {[%emt 0:05:30]} Qa6 {[%emt 0:00:00]} 18. Nce5 {[%emt 0:02:30]} Qb6 {[%emt 0:01:30]} 19. c4 {[%emt 0:03:30]} Qa6 {[%emt 0:02:30]} 20. cxd5 {[%emt 0:00:30]} Qxd3 {[%emt 0:00:00]} 21. Nxd3 {[%emt 0:00:30]} Nxd5 {[%emt 0:00:00]} 22. Nc5 {[%emt 0:04:30]} b6 {[%emt 0:00:30]} 23. Ne4 {[%emt 0:02:30]} Rfd8 {[%emt 0:01:30]} 24. Rac1 {[%emt 0:03:30]} Rac8 {[%emt 0:01:30]} 25. Ne5 {[%emt 0:01:30]} c5 {[%emt 0:04:30]} 26. dxc5 {[%emt 0:01:30]} bxc5 {[%emt 0:00:30]} 27. Rc2 {[%emt 0:02:30]} Nb6 {[%emt 0:01:30]} 28. Rfc1 {[%emt 0:02:30]} Rd5 {[%emt 0:04:30]} 29. Nc3 {[%emt 0:02:30]} Rd4 {[%emt 0:00:30]} 30. Nf3 {[%emt 0:00:30]} Rd3 {[%emt 0:00:30]} 31. Bf4 {[%emt 0:01:30]} c4 {[%emt 0:01:30]} 32. Be3 {[%emt 0:01:30]} Nd5 {[%emt 0:01:30]} 33. Nxd5 {[%emt 0:00:30]} exd5 {[%emt 0:00:00]} 34. Bxa7 {[%emt 0:01:30]} Bd6 {[%emt 0:00:00]} 35. Bd4 {[%emt 0:00:30]} f6 {[%emt 0:00:30]} 36. Bc3 {[%emt 0:00:30]} Bf4 {[%emt 0:00:30]} 37. Ra1 {[%emt 0:01:30]} Bd6 {[%emt 0:02:30]} 38. Ne1 {[%emt 0:00:00]} d4 {[%emt 0:00:30]} 39. Bb4 {[%emt 0:01:00]} Bxb4 {[%emt 0:00:30]} 40. Nxd3 {[%emt 0:00:30]} Bd6 {[%emt 0:00:30]} 41. Ne1 {[%emt 0:31:30]} c3 {[%emt 0:30:30]} 42. bxc3 {[%emt 0:00:30]} dxc3 {[%emt 0:00:30]} 43. a4 {[%emt 0:00:30]} Bb4 {[%emt 0:00:30]} 44. a5 {[%emt 0:00:30]} Re8 {[%emt 0:00:30]} 45. a6 {[%emt 0:00:00]} 1-0

[Event "ESTCC 65 2019"]
[Site "Mali Losinj"]
[Date "2019.09.19"]
[Round "2.29"]
[White "James, Kevin"]
[Black "Vadlja, Stjepan"]
[Result "1-0"]
[ECO "D36"]
[WhiteElo "1959"]
[BlackElo "1636"]
[Annotator "NA"]
[PlyCount "65"]
[EventDate "2019.09.18"]
[EventType "team-tourn"]
[EventCountry "CRO"]
[SourceTitle "playchess.com"]
[Source "ChessBase"]
[SourceQuality "1"]
[WhiteTeam "Ireland"]
[BlackTeam "Croatia"]
[WhiteTeamCountry "IRL"]
[BlackTeamCountry "CRO"]
[TimeControl "40/5400+30:1800+30"]

1. d4 {[%emt 0:00:30]} d5 {[%emt 0:00:30]} 2. c4 {[%emt 0:00:00]} Nf6 {[%emt 0:00:30]} 3. Nc3 {[%emt 0:00:00]} e6 {[%emt 0:00:00]} 4. cxd5 {[%emt 0:00:00]} exd5 {[%emt 0:00:00]} 5. Bg5 {[%emt 0:00:00]} Be7 {[%emt 0:00:30]} 6. Qc2 {[%emt 0:00:30]} O-O {[%emt 0:00:30]} 7. e3 {[%emt 0:00:00]} c6 {[%emt 0:00:30]} 8. Bd3 {[%emt 0:00:00]} h6 {[%emt 0:00:30]} 9. Bh4 {[%emt 0:00:30]} Re8 {[%emt 0:00:30]} 10. Nge2 {[%emt 0:00:30]} Nbd7 {[%emt 0:00:30]} 11. f3 {[%emt 0:00:30]} Nf8 {[%emt 0:00:30]} 12. Rd1 {[%emt 0:07:30]} N6h7 {[%emt 0:00:30]} 13. Bf2 {[%emt 0:00:30]} Bg5 {[%emt 0:01:30]} 14. e4 {[%emt 0:00:30]} dxe4 {[%emt 0:00:30]} 15. fxe4 {[%emt 0:00:30]} Nf6 {[%emt 0:01:30]} 16. h4 {[%emt 0:00:30]} Ng4 {[%emt 0:00:00]} 17. hxg5 {[%emt 0:01:30]} Nxf2 {[%emt 0:01:00]} 18. Kxf2 {[%emt 0:00:30]} Qxg5 {[%emt 0:00:00]} 19. Qd2 {[%emt 0:00:30]} Qe7 {[%emt 0:01:00]} 20. e5 {[%emt 0:02:30]} Be6 {[%emt 0:01:30]} 21. Ne4 {[%emt 0:00:30]} Nd7 {[%emt 0:06:30]} 22. Rh2 {[%emt 0:02:30]} f5 {[%emt 0:00:30]} 23. Nd6 {[%emt 0:01:30]} Rf8 {[%emt 0:00:30]} 24. Nf4 {[%emt 0:01:30]} Bf7 {[%emt 0:03:30]} 25. Nxf7 {[%emt 0:00:00]} Nb6 {[%emt 0:01:30]} 26. Nxh6+ {[%emt 0:02:00]} gxh6 {[%emt 0:00:00]} 27. Ng6 {[%emt 0:00:30]} Qg7 {[%emt 0:01:00]} 28. Nxf8 {[%emt 0:00:00]} Rxf8 {[%emt 0:00:30]} 29. Qxh6 {[%emt 0:00:00]} Nd5 {[%emt 0:00:30]} 30. Rdh1 {[%emt 0:00:30]} Ne7 {[%emt 0:01:30]} 31. Qxg7+ {[%emt 0:00:30]} Kxg7 {[%emt 0:00:30]} 32. Rh7+ {[%emt 0:00:30]} Kg8 {[%emt 0:00:30]} 33. Rxe7 {[%emt 0:00:30]} 1-0

[Event "ESTCC 65 2019"]
[Site "Mali Losinj"]
[Date "2019.09.19"]
[Round "2.31"]
[White "Egan, Colm"]
[Black "Novak, Stjepan"]
[Result "1-0"]
[ECO "A44"]
[WhiteElo "1710"]
[BlackElo "1503"]
[Annotator "NA"]
[PlyCount "91"]
[EventDate "2019.09.18"]
[EventType "team-tourn"]
[EventCountry "CRO"]
[SourceTitle "playchess.com"]
[Source "ChessBase"]
[SourceQuality "1"]
[WhiteTeam "Ireland"]
[BlackTeam "Croatia"]
[WhiteTeamCountry "IRL"]
[BlackTeamCountry "CRO"]
[TimeControl "40/5400+30:1800+30"]

1. d4 {[%emt 0:00:30]} c5 {[%emt 0:00:30]} 2. d5 {[%emt 0:00:00]} d6 {[%emt 0:00:00]} 3. Nc3 {[%emt 0:00:00]} e5 {[%emt 0:00:00]} 4. e4 {[%emt 0:00:30]} a6 {[%emt 0:01:30]} 5. a4 {[%emt 0:00:30]} Nf6 {[%emt 0:00:30]} 6. Bg5 {[%emt 0:04:30]} Be7 {[%emt 0:00:30]} 7. Bxf6 {[%emt 0:02:30]} Bxf6 {[%emt 0:00:30]} 8. Nf3 {[%emt 0:00:30]} Bg4 {[%emt 0:00:30]} 9. Be2 {[%emt 0:00:30]} Bxf3 {[%emt 0:00:30]} 10. Bxf3 {[%emt 0:00:00]} Nd7 {[%emt 0:00:30]} 11. a5 {[%emt 0:03:00]} b5 {[%emt 0:03:30]} 12. axb6 {[%emt 0:00:30]} Nxb6 {[%emt 0:04:30]} 13. O-O {[%emt 0:02:30]} O-O {[%emt 0:00:30]} 14. Be2 {[%emt 0:00:30]} Qc8 {[%emt 0:01:30]} 15. Ra3 {[%emt 0:02:30]} c4 {[%emt 0:07:30]} 16. Qa1 {[%emt 0:06:30]} Qb7 {[%emt 0:01:30]} 17. Qa2 {[%emt 0:01:30]} Rfb8 {[%emt 0:05:30]} 18. Ra1 {[%emt 0:02:30]} h6 {[%emt 0:00:30]} 19. Rxa6 {[%emt 0:02:30]} Rxa6 {[%emt 0:00:30]} 20. Qxa6 {[%emt 0:00:30]} Qxa6 {[%emt 0:00:30]} 21. Rxa6 {[%emt 0:00:00]} Be7 {[%emt 0:01:30]} 22. Ra7 {[%emt 0:04:00]} Kf8 {[%emt 0:03:30]} 23. Kf1 {[%emt 0:01:30]} g6 {[%emt 0:02:30]} 24. Ke1 {[%emt 0:00:30]} Ke8 {[%emt 0:03:30]} 25. Kd1 {[%emt 0:01:30]} Kd8 {[%emt 0:04:30]} 26. b3 {[%emt 0:00:30]} cxb3 {[%emt 0:01:30]} 27. cxb3 {[%emt 0:00:30]} f5 {[%emt 0:00:30]} 28. exf5 {[%emt 0:02:30]} gxf5 {[%emt 0:00:30]} 29. Kc2 {[%emt 0:01:30]} Nc8 {[%emt 0:03:30]} 30. Ra5 {[%emt 0:02:30]} Bg5 {[%emt 0:04:30]} 31. Bd3 {[%emt 0:03:30]} Ne7 {[%emt 0:03:30]} 32. Ra7 {[%emt 0:01:30]} Rc8 {[%emt 0:03:30]} 33. Kb2 {[%emt 0:00:30]} Bc1+ {[%emt 0:08:30]} 34. Kc2 {[%emt 0:08:30]} Bg5 {[%emt 0:04:30]} 35. Bb5 {[%emt 0:01:30]} Rc7 {[%emt 0:00:30]} 36. Ra6 {[%emt 0:03:30]} Nc8 {[%emt 0:01:30]} 37. Bc6 {[%emt 0:01:30]} Na7 {[%emt 0:02:30]} 38. b4 {[%emt 0:00:30]} e4 {[%emt 0:05:30]} 39. b5 {[%emt 0:02:30]} Nxc6 {[%emt 0:01:30]} 40. dxc6 {[%emt 0:00:30]} Ke8 {[%emt 0:01:30]} 41. Nd5 {[%emt 0:31:30]} Rc8 {[%emt 0:30:30]} 42. c7 {[%emt 0:00:30]} e3 {[%emt 0:00:30]} 43. fxe3 {[%emt 0:00:30]} Bxe3 {[%emt 0:00:30]} 44. Rxd6 {[%emt 0:01:30]} Bg5 {[%emt 0:00:30]} 45. b6 {[%emt 0:00:30]} Ra8 {[%emt 0:00:30]} 46. b7 {[%emt 0:00:30]} 1-0

[Event "ESTCC 65 2019"]
[Site "Mali Losinj"]
[Date "2019.09.19"]
[Round "2.32"]
[White "Petanjek, Zvonko"]
[Black "Durkan, Joe"]
[Result "0-1"]
[ECO "C47"]
[WhiteElo "1650"]
[BlackElo "1459"]
[Annotator "NA"]
[PlyCount "112"]
[EventDate "2019.09.18"]
[EventType "team-tourn"]
[EventCountry "CRO"]
[SourceTitle "playchess.com"]
[Source "ChessBase"]
[SourceQuality "1"]
[WhiteTeam "Croatia"]
[BlackTeam "Ireland"]
[WhiteTeamCountry "CRO"]
[BlackTeamCountry "IRL"]
[TimeControl "40/5400+30:1800+30"]

1. e4 {[%emt 0:00:30]} e5 {[%emt 0:00:30]} 2. Nf3 {[%emt 0:00:00]} Nc6 {[%emt 0:00:00]} 3. a3 {[%emt 0:00:00]} Nf6 {[%emt 0:00:00]} 4. Nc3 {[%emt 0:00:30]} h6 {[%emt 0:06:30]} 5. Bc4 {[%emt 0:00:30]} Be7 {[%emt 0:01:30]} 6. O-O {[%emt 0:00:00]} O-O {[%emt 0:00:30]} 7. d3 {[%emt 0:01:00]} d6 {[%emt 0:00:30]} 8. h3 {[%emt 0:00:00]} a6 {[%emt 0:05:30]} 9. Be3 {[%emt 0:00:00]} Na5 {[%emt 0:01:30]} 10. Ba2 {[%emt 0:05:30]} Be6 {[%emt 0:03:30]} 11. Nd5 {[%emt 0:00:30]} c5 {[%emt 0:03:30]} 12. Nxf6+ {[%emt 0:02:30]} Bxf6 {[%emt 0:00:30]} 13. Bxe6 {[%emt 0:00:30]} fxe6 {[%emt 0:00:30]} 14. c4 {[%emt 0:00:30]} Nc6 {[%emt 0:03:30]} 15. Nh2 {[%emt 0:01:30]} Bg5 {[%emt 0:04:30]} 16. Qg4 {[%emt 0:00:30]} Kh8 {[%emt 0:15:30]} 17. Qxe6 {[%emt 0:01:30]} Nd4 {[%emt 0:02:30]} 18. Bxd4 {[%emt 0:00:00]} cxd4 {[%emt 0:00:30]} 19. Nf3 {[%emt 0:00:00]} Bf6 {[%emt 0:01:30]} 20. b4 {[%emt 0:01:30]} Re8 {[%emt 0:04:30]} 21. Qd5 {[%emt 0:00:30]} b6 {[%emt 0:00:30]} 22. Rac1 {[%emt 0:00:30]} a5 {[%emt 0:14:30]} 23. b5 {[%emt 0:03:30]} Rc8 {[%emt 0:00:30]} 24. Qf7 {[%emt 0:00:30]} Rc7 {[%emt 0:00:30]} 25. Qh5 {[%emt 0:00:30]} Kh7 {[%emt 0:01:30]} 26. Nh2 {[%emt 0:00:30]} g6 {[%emt 0:00:30]} 27. Qe2 {[%emt 0:00:30]} Bg5 {[%emt 0:01:30]} 28. Rc2 {[%emt 0:00:30]} Rf7 {[%emt 0:00:30]} 29. g3 {[%emt 0:00:30]} Ref8 {[%emt 0:00:30]} 30. h4 {[%emt 0:00:30]} Be7 {[%emt 0:10:43]} 31. Qg4 {[%emt 0:01:30]} h5 {[%emt 0:00:54]} 32. Qh3 {[%emt 0:00:00]} Kg7 {[%emt 0:00:22]} 33. f3 {[%emt 0:00:00]} Qc8 {[%emt 0:03:46]} 34. Qxc8 {[%emt 0:00:30]} Rxc8 {[%emt 0:00:07]} 35. Rcf2 {[%emt 0:00:30]} Rcf8 {[%emt 0:00:25]} 36. Kg2 {[%emt 0:00:00]} g5 {[%emt 0:02:31]} 37. Kh3 {[%emt 0:00:00]} g4+ {[%emt 0:00:20]} 38. Kg2 {[%emt 0:00:30]} gxf3+ {[%emt 0:02:07]} 39. Rxf3 {[%emt 0:00:30]} Rxf3 {[%emt 0:00:51]} 40. Rxf3 {[%emt 0:00:30]} Rxf3 {[%emt 0:00:08]} 41. Kxf3 {[%emt 0:29:30]} d5 {[%emt 0:30:28]} 42. a4 {[%emt 0:00:30]} dxc4 {[%emt 0:00:34]} 43. dxc4 {[%emt 0:00:30]} Kf7 {[%emt 0:02:04]} 44. Ke2 {[%emt 0:00:30]} Ke6 {[%emt 0:00:15]} 45. Nf3 {[%emt 0:00:30]} Kd6 {[%emt 0:00:29]} 46. Kd3 {[%emt 0:00:30]} Bf6 {[%emt 0:00:37]} 47. Ke2 {[%emt 0:01:30]} Kc5 {[%emt 0:00:34]} 48. Kd3 {[%emt 0:00:30]} Kb4 {[%emt 0:00:19]} 49. Ne1 {[%emt 0:00:30]} Kxa4 {[%emt 0:01:22]} 50. Nc2 {[%emt 0:00:30]} Kb3 {[%emt 0:00:43]} 51. Na1+ {[%emt 0:00:30]} Kb2 {[%emt 0:00:24]} 52. Nc2 {[%emt 0:00:30]} a4 {[%emt 0:00:20]} 53. Nb4 {[%emt 0:00:30]} a3 {[%emt 0:00:08]} 54. Kd2 {[%emt 0:02:30]} Be7 {[%emt 0:00:31]} 55. Nc2 {[%emt 0:00:30]} a2 {[%emt 0:00:26]} 56. Kd3 {[%emt 0:00:30]} a1=Q {[%emt 0:03:44]} 0-1

[Event "ESTCC 65 2019"]
[Site "Mali Losinj"]
[Date "2019.09.20"]
[Round "3.1"]
[White "Werner, Clemens"]
[Black "Balashov, Yuri S"]
[Result "0-1"]
[ECO "C08"]
[WhiteElo "2286"]
[BlackElo "2466"]
[Annotator "RC"]
[PlyCount "94"]
[EventDate "2019.09.18"]
[EventType "team-tourn"]
[EventCountry "CRO"]
[SourceTitle "playchess.com"]
[Source "ChessBase"]
[SourceQuality "1"]
[WhiteTeam "Germany"]
[BlackTeam "Russia"]
[WhiteTeamCountry "GER"]
[BlackTeamCountry "RUS"]
[TimeControl "40/5400+30:1800+30"]

1. e4 {[%emt 0:00:30]} c5 {[%emt 0:00:30]} 2. Nf3 {[%emt 0:00:00]} e6 {[%emt 0:00:00]} 3. c3 {[%emt 0:00:00]} d5 {[%emt 0:01:00]} 4. exd5 {[%emt 0:00:30]} exd5 {[%emt 0:00:00]} 5. d4 {[%emt 0:00:00]} Nf6 {[%emt 0:01:00]} 6. Nbd2 {[%emt 0:00:00]} Nc6 {[%emt 0:02:30]} 7. Bb5 {[%emt 0:00:30]} Bd6 {[%emt 0:05:30]} 8. O-O {[%emt 0:06:30]} O-O {[%emt 0:00:30]} 9. dxc5 {[%emt 0:01:30]} Bxc5 {[%emt 0:00:00]} 10. Nb3 {[%emt 0:00:30]} Bb6 {[%emt 0:05:00]} 11. Bg5 {[%emt 0:01:30]} a6 {[%emt 0:00:30]} 12. Be2 {[%emt 0:01:30]} Re8 {[%emt 0:02:30]} 13. Bh4 {[%emt 0:03:30]} h6 {[%emt 0:09:30]} 14. Qd2 {[%emt 0:10:30]} Qd6 {[%emt 0:08:30]} 15. Bg3 {[%emt 0:11:30]} Qe6 {[%emt 0:14:30]} 16. Rae1 {[%emt 0:12:30]} Ne4 {[%emt 0:00:30]} 17. Qd1 {[%emt 0:02:30]} f5 {[%emt 0:03:30]} 18. Nfd4 {[%emt 0:01:30]} Qf7 {[%emt 0:01:30]} 19. Bf4 {[%emt 0:01:30]} Bd7 {[%emt 0:02:30]} 20. Bh5 {[%emt 0:03:30]} g6 {[%emt 0:00:30]} 21. Be2 {[%emt 0:00:00]} Kh7 {[%emt 0:00:30]} 22. Bd3 {[%emt 0:07:00]} Qf6 {[%emt 0:03:30]} 23. Bb1 {[%emt 0:08:30]} Ne5 {[%emt 0:02:30]} 24. Bxe5 {[%emt 0:01:30]} Rxe5 {[%emt 0:00:30]} 25. f3 {[%emt 0:00:30]} Nd6 {[%emt 0:00:30]} 26. Rxe5 {[%emt 0:00:30]} Qxe5 {[%emt 0:00:30]} 27. Re1 {[%emt 0:00:00]} Qf6 {[%emt 0:00:30]} 28. Kh1 {[%emt 0:01:00]} Re8 {[%emt 0:00:30]} 29. Rxe8 {[%emt 0:00:30]} Bxe8 {[%emt 0:00:00]} 30. Qe2 {[%emt 0:01:30]} Bd7 {[%emt 0:00:00]} 31. Bd3 {[%emt 0:01:30]} h5 {[%emt 0:02:30]} 32. Qf2 {[%emt 0:04:16]} Nf7 {[%emt 0:05:30]} 33. f4 {[%emt 0:02:45]} Nd6 {[%emt 0:00:30]} 34. Nd2 {[%emt 0:00:51]} Ne4 {[%emt 0:00:30]} 35. Nxe4 {[%emt 0:00:50]} dxe4 {[%emt 0:03:30]} 36. Bc4 {[%emt 0:01:52]} Bc7 {[%emt 0:02:30]} 37. Qe3 {[%emt 0:03:51]} b5 {[%emt 0:02:30]} 38. Be2 {[%emt 0:01:15]} b4 {[%emt 0:01:30]} 39. g3 {[%emt 0:03:07]} bxc3 {[%emt 0:01:33]} 40. Qxc3 {[%emt 0:04:33]} Qd6 {[%emt 0:00:00]} 41. Nb3 {[%emt 0:09:40]} Bb6 {[%emt 0:02:57]} 42. Kg2 {[%emt 0:01:30]} e3 {[%emt 0:08:30]} 43. Bf3 {[%emt 0:01:30]} Bb5 {[%emt 0:01:30]} 44. Qc2 {[%emt 0:05:29]} a5 {[%emt 0:01:30]} 45. Bxh5 {[%emt 0:04:53]} a4 {[%emt 0:00:30]} 46. Na1 {[%emt 0:00:08]} Bc6+ {[%emt 0:01:30]} 47. Kf1 {[%emt 0:04:06]} Qd5 {[%emt 0:00:30]} 0-1